[Event "Titled Tuesday Blitz June 07 Late 2022"]
[White "Romanchuk, Viktor"]
[Black "Ozdemir, Serhan Berat"]
[WhiteFideId "14109271"]
[BlackFideId "6374611"]
[WhiteElo "2242"]
[BlackElo "1920"]
[Result "1/2-1/2"]
[Round "11"]
[TimeControl "180+1"]
[Date "2022.06.07"]
[WhiteClock "0:00:05"]
[BlackClock "0:00:12"]

1. d4 {[%clk 0:03:00]}  Nf6 {[%clk 0:02:59]} 2. c4 {[%clk 0:03:00]}  g6 {[%clk 0:03:00]} 3. Nf3 {[%clk 0:02:58]}  Bg7 {[%clk 0:02:57]} 4. g3 {[%clk 0:02:58]}  O-O {[%clk 0:02:57]} 5. Bg2 {[%clk 0:02:58]}  d6 {[%clk 0:02:58]} 6. Nc3 {[%clk 0:02:57]}  c6 {[%clk 0:02:58]} 7. O-O {[%clk 0:02:57]}  Qa5 {[%clk 0:02:59]} 8. e4 {[%clk 0:02:57]}  e5 {[%clk 0:02:58]} 9. Re1 {[%clk 0:02:54]}  Nbd7 {[%clk 0:02:42]} 10. h3 {[%clk 0:02:48]}  exd4 {[%clk 0:02:40]} 11. Nxd4 {[%clk 0:02:49]}  Ne5 {[%clk 0:02:40]} 12. Bf1 {[%clk 0:02:43]}  Qb6 {[%clk 0:02:40]} 13. Nb3 {[%clk 0:02:30]}  Be6 {[%clk 0:02:19]} 14. Be3 {[%clk 0:02:25]}  Qc7 {[%clk 0:02:18]} 15. Nd2 {[%clk 0:02:08]}  Rfe8 {[%clk 0:02:05]} 16. f4 {[%clk 0:01:55]}  Ned7 {[%clk 0:02:05]} 17. Bf2 {[%clk 0:01:54]}  Rad8 {[%clk 0:01:55]} 18. Qc2 {[%clk 0:01:53]}  Nc5 {[%clk 0:01:46]} 19. Rad1 {[%clk 0:01:43]}  Nh5 {[%clk 0:01:34]} 20. b4 {[%clk 0:01:08]}  Na6 {[%clk 0:01:18]} 21. a3 {[%clk 0:01:07]}  Qd7 {[%clk 0:01:13]} 22. Kh2 {[%clk 0:00:55]}  Qc8 {[%clk 0:01:06]} 23. Nf3 {[%clk 0:00:37]}  h6 {[%clk 0:01:06]} 24. Nd4 {[%clk 0:00:36]}  Bd7 {[%clk 0:01:05]} 25. Bg2 {[%clk 0:00:33]}  Nc7 {[%clk 0:01:06]} 26. Nb3 {[%clk 0:00:31]}  Ne6 {[%clk 0:01:04]} 27. f5 {[%clk 0:00:26]}  gxf5 {[%clk 0:00:56]} 28. exf5 {[%clk 0:00:26]}  Ng5 {[%clk 0:00:56]} 29. g4 {[%clk 0:00:20]}  Nf4 {[%clk 0:00:53]} 30. Bg3 {[%clk 0:00:16]}  Nxg2 {[%clk 0:00:52]} 31. Kxg2 {[%clk 0:00:17]}  Rxe1 {[%clk 0:00:48]} 32. Rxe1 {[%clk 0:00:16]}  Re8 {[%clk 0:00:49]} 33. Rxe8+ {[%clk 0:00:15]}  Qxe8 {[%clk 0:00:49]} 34. Nc1 {[%clk 0:00:11]}  Qe3 {[%clk 0:00:46]} 35. Nd1 {[%clk 0:00:04]}  Qf3+ {[%clk 0:00:43]} 36. Kh2 {[%clk 0:00:05]}  Be5 {[%clk 0:00:40]} 37. Bxe5 {[%clk 0:00:03]}  Qxh3+ {[%clk 0:00:41]} 38. Kg1 {[%clk 0:00:03]}  Nf3+ {[%clk 0:00:33]} 39. Kf2 {[%clk 0:00:03]}  Qh2+ {[%clk 0:00:34]} 40. Bxh2 {[%clk 0:00:02]}  Nxh2 {[%clk 0:00:32]} 41. Qe2 {[%clk 0:00:03]}  h5 {[%clk 0:00:30]} 42. Kg3 {[%clk 0:00:03]}  Nxg4 {[%clk 0:00:27]} 43. Ne3 {[%clk 0:00:04]}  Nf6 {[%clk 0:00:26]} 44. Qd2 {[%clk 0:00:03]}  Ne4+ {[%clk 0:00:26]} 45. Kh4 {[%clk 0:00:03]}  Nxd2 {[%clk 0:00:27]} 46. Kxh5 {[%clk 0:00:04]}  Kg7 {[%clk 0:00:24]} 47. Kg5 {[%clk 0:00:04]}  Nf3+ {[%clk 0:00:20]} 48. Kf4 {[%clk 0:00:05]}  Nd4 {[%clk 0:00:20]} 49. Nd3 {[%clk 0:00:04]}  Kf6 {[%clk 0:00:20]} 50. Ke4 {[%clk 0:00:04]}  Nxf5 {[%clk 0:00:20]} 51. Ng4+ {[%clk 0:00:04]}  Kg5 {[%clk 0:00:20]} 52. Ngf2 {[%clk 0:00:04]}  Ng3+ {[%clk 0:00:20]} 53. Kf3 {[%clk 0:00:04]}  Nh5 {[%clk 0:00:18]} 54. Ne4+ {[%clk 0:00:03]}  Kh4 {[%clk 0:00:13]} 55. Nxd6 {[%clk 0:00:04]}  Bg4+ {[%clk 0:00:13]} 56. Kf2 {[%clk 0:00:03]}  b6 {[%clk 0:00:12]} 57. Nxf7 {[%clk 0:00:03]}  Bf5 {[%clk 0:00:11]} 58. Nde5 {[%clk 0:00:03]}  Be6 {[%clk 0:00:10]} 59. Nd8 {[%clk 0:00:03]}  Nf4 {[%clk 0:00:09]} 60. Nxe6 {[%clk 0:00:02]}  Nxe6 {[%clk 0:00:10]} 61. Nxc6 {[%clk 0:00:02]}  Kg4 {[%clk 0:00:11]} 62. Nxa7 {[%clk 0:00:02]}  Kf4 {[%clk 0:00:11]} 63. c5 {[%clk 0:00:02]}  bxc5 {[%clk 0:00:12]} 64. bxc5 {[%clk 0:00:02]}  Nxc5 {[%clk 0:00:12]} 65. Nb5 {[%clk 0:00:03]}  Ke4 {[%clk 0:00:12]} 66. Ke2 {[%clk 0:00:03]}  Kd5 {[%clk 0:00:11]} 67. Kd2 {[%clk 0:00:04]}  Kc4 {[%clk 0:00:12]} 68. Nd6+ {[%clk 0:00:04]}  Kb3 {[%clk 0:00:12]} 69. Ke3 {[%clk 0:00:05]}  Kxa3 {[%clk 0:00:12]} 1/2-1/2


[Site "https://www.chess.com"]

[Event "Titled Tuesday Blitz June 07 Late 2022"]
[White "Sarana, Alexey"]
[Black "Slugin, Sergey"]
[WhiteFideId "24133795"]
[BlackFideId "4122569"]
[WhiteElo "2666"]
[BlackElo "2358"]
[Result "1-0"]
[Round "11"]
[TimeControl "180+1"]
[Date "2022.06.07"]
[WhiteClock "0:00:16"]
[BlackClock "0:00:08"]

1. d4 {[%clk 0:03:00]}  Nf6 {[%clk 0:03:00]} 2. c4 {[%clk 0:03:01]}  g6 {[%clk 0:03:01]} 3. Nc3 {[%clk 0:03:01]}  d5 {[%clk 0:03:02]} 4. Bf4 {[%clk 0:03:00]}  Bg7 {[%clk 0:03:02]} 5. e3 {[%clk 0:03:00]}  O-O {[%clk 0:03:02]} 6. Rc1 {[%clk 0:02:58]}  Be6 {[%clk 0:03:00]} 7. c5 {[%clk 0:02:54]}  c6 {[%clk 0:03:00]} 8. Nf3 {[%clk 0:02:52]}  Bg4 {[%clk 0:02:57]} 9. h3 {[%clk 0:02:50]}  Bxf3 {[%clk 0:02:56]} 10. Qxf3 {[%clk 0:02:51]}  Nbd7 {[%clk 0:02:50]} 11. Bd3 {[%clk 0:02:49]}  Re8 {[%clk 0:02:46]} 12. O-O {[%clk 0:02:35]}  e5 {[%clk 0:02:46]} 13. dxe5 {[%clk 0:02:36]}  Nxe5 {[%clk 0:02:47]} 14. Bxe5 {[%clk 0:02:36]}  Rxe5 {[%clk 0:02:48]} 15. Ne2 {[%clk 0:02:37]}  Ne4 {[%clk 0:02:42]} 16. Rfd1 {[%clk 0:02:31]}  Qe7 {[%clk 0:02:42]} 17. b4 {[%clk 0:02:26]}  a5 {[%clk 0:02:42]} 18. b5 {[%clk 0:02:25]}  Nxc5 {[%clk 0:02:37]} 19. bxc6 {[%clk 0:02:25]}  bxc6 {[%clk 0:02:37]} 20. Nd4 {[%clk 0:02:25]}  Qd6 {[%clk 0:02:26]} 21. Rc2 {[%clk 0:02:21]}  Nxd3 {[%clk 0:02:22]} 22. Rxd3 {[%clk 0:02:14]}  c5 {[%clk 0:02:13]} 23. Nb5 {[%clk 0:02:14]}  Qb6 {[%clk 0:01:59]} 24. a4 {[%clk 0:02:07]}  Rd8 {[%clk 0:01:56]} 25. Rcd2 {[%clk 0:01:59]}  Qc6 {[%clk 0:01:49]} 26. Rd1 {[%clk 0:01:51]}  c4 {[%clk 0:01:43]} 27. R3d2 {[%clk 0:01:52]}  Qc5 {[%clk 0:01:31]} 28. Qg4 {[%clk 0:01:19]}  Qb4 {[%clk 0:01:09]} 29. Ra2 {[%clk 0:01:17]}  Qb3 {[%clk 0:01:05]} 30. Qe2 {[%clk 0:01:15]}  Re4 {[%clk 0:00:51]} 31. Qc2 {[%clk 0:01:09]}  Qxc2 {[%clk 0:00:41]} 32. Rxc2 {[%clk 0:01:10]}  c3 {[%clk 0:00:41]} 33. Ra2 {[%clk 0:01:05]}  Rc4 {[%clk 0:00:40]} 34. Kf1 {[%clk 0:01:03]}  f5 {[%clk 0:00:33]} 35. Ke2 {[%clk 0:00:54]}  f4 {[%clk 0:00:34]} 36. Kd3 {[%clk 0:00:53]}  fxe3 {[%clk 0:00:32]} 37. fxe3 {[%clk 0:00:54]}  Re4 {[%clk 0:00:26]} 38. Re1 {[%clk 0:00:39]}  Re6 {[%clk 0:00:10]} 39. Ree2 {[%clk 0:00:39]}  Rde8 {[%clk 0:00:08]} 40. Nc7 {[%clk 0:00:37]}  R8e7 {[%clk 0:00:05]} 41. Nxe6 {[%clk 0:00:37]}  Rxe6 {[%clk 0:00:06]} 42. e4 {[%clk 0:00:29]}  dxe4+ {[%clk 0:00:05]} 43. Rxe4 {[%clk 0:00:29]}  Rd6+ {[%clk 0:00:06]} 44. Kc2 {[%clk 0:00:28]}  h5 {[%clk 0:00:04]} 45. Rc4 {[%clk 0:00:27]}  Rd2+ {[%clk 0:00:03]} 46. Kb3 {[%clk 0:00:27]}  Rd1 {[%clk 0:00:04]} 47. Re2 {[%clk 0:00:24]}  Rb1+ {[%clk 0:00:04]} 48. Kc2 {[%clk 0:00:25]}  Ra1 {[%clk 0:00:04]} 49. Rc7 {[%clk 0:00:21]}  Rxa4 {[%clk 0:00:02]} 50. Re8+ {[%clk 0:00:20]}  Bf8 {[%clk 0:00:02]} 51. g3 {[%clk 0:00:19]}  Ra2+ {[%clk 0:00:01]} 52. Kxc3 {[%clk 0:00:19]}  Rf2 {[%clk 0:00:02]} 53. Kd3 {[%clk 0:00:18]}  Rf3+ {[%clk 0:00:02]} 54. Ke2 {[%clk 0:00:19]}  Rf6 {[%clk 0:00:02]} 55. Ra7 {[%clk 0:00:18]}  Rf5 {[%clk 0:00:03]} 56. g4 {[%clk 0:00:17]}  hxg4 {[%clk 0:00:04]} 57. hxg4 {[%clk 0:00:18]}  Rf6 {[%clk 0:00:04]} 58. Rxa5 {[%clk 0:00:16]}  Kf7 {[%clk 0:00:05]} 59. Rc8 {[%clk 0:00:15]}  Bd6 {[%clk 0:00:04]} 60. Ra7+ {[%clk 0:00:14]}  Ke6 {[%clk 0:00:04]} 61. Re8+ {[%clk 0:00:14]}  Kd5 {[%clk 0:00:05]} 62. Ra5+ {[%clk 0:00:14]}  Kc6 {[%clk 0:00:03]} 63. Rg5 {[%clk 0:00:13]}  Bf4 {[%clk 0:00:02]} 64. Ra5 {[%clk 0:00:13]}  g5 {[%clk 0:00:02]} 65. Kd3 {[%clk 0:00:11]}  Kd7 {[%clk 0:00:03]} 66. Rea8 {[%clk 0:00:11]}  Rd6+ {[%clk 0:00:03]} 67. Ke4 {[%clk 0:00:11]}  Rd1 {[%clk 0:00:04]} 68. Rd5+ {[%clk 0:00:11]}  Rxd5 {[%clk 0:00:03]} 69. Kxd5 {[%clk 0:00:12]}  Ke7 {[%clk 0:00:04]} 70. Ra7+ {[%clk 0:00:12]}  Kf6 {[%clk 0:00:05]} 71. Ra6+ {[%clk 0:00:12]}  Kf7 {[%clk 0:00:05]} 72. Ke4 {[%clk 0:00:13]}  Ke7 {[%clk 0:00:06]} 73. Kf5 {[%clk 0:00:14]}  Kf7 {[%clk 0:00:06]} 74. Ra7+ {[%clk 0:00:14]}  Kf8 {[%clk 0:00:07]} 75. Kf6 {[%clk 0:00:15]}  Ke8 {[%clk 0:00:07]} 76. Ra8+ {[%clk 0:00:15]}  Kd7 {[%clk 0:00:08]} 77. Rg8 {[%clk 0:00:16]} 1-0


[Site "https://www.chess.com"]

[Event "Titled Tuesday Blitz June 07 Late 2022"]
[White "Terry, Renato"]
[Black "Svane, Frederik"]
[WhiteFideId "3803457"]
[BlackFideId "12923044"]
[WhiteElo "2577"]
[BlackElo "2459"]
[Result "0-1"]
[Round "11"]
[TimeControl "180+1"]
[Date "2022.06.07"]
[WhiteClock "0:00:01"]
[BlackClock "0:00:03"]

1. d4 {[%clk 0:03:00]}  Nf6 {[%clk 0:03:00]} 2. Bg5 {[%clk 0:03:00]}  e6 {[%clk 0:02:58]} 3. e4 {[%clk 0:03:00]}  h6 {[%clk 0:02:58]} 4. Bxf6 {[%clk 0:02:59]}  Qxf6 {[%clk 0:02:59]} 5. c3 {[%clk 0:02:59]}  d6 {[%clk 0:02:59]} 6. Bd3 {[%clk 0:02:59]}  g6 {[%clk 0:03:00]} 7. Ne2 {[%clk 0:02:59]}  Bg7 {[%clk 0:03:00]} 8. O-O {[%clk 0:03:00]}  O-O {[%clk 0:03:01]} 9. f4 {[%clk 0:03:00]}  Qd8 {[%clk 0:03:01]} 10. Nd2 {[%clk 0:03:00]}  e5 {[%clk 0:03:01]} 11. Nf3 {[%clk 0:03:00]}  exf4 {[%clk 0:02:58]} 12. Nxf4 {[%clk 0:03:00]}  c5 {[%clk 0:02:59]} 13. Bc4 {[%clk 0:02:55]}  Qf6 {[%clk 0:02:12]} 14. Nd5 {[%clk 0:02:54]}  Qd8 {[%clk 0:02:13]} 15. Nf4 {[%clk 0:02:53]}  Qf6 {[%clk 0:02:12]} 16. Qd2 {[%clk 0:02:14]}  cxd4 {[%clk 0:02:11]} 17. Nxd4 {[%clk 0:02:07]}  Qg5 {[%clk 0:02:07]} 18. h4 {[%clk 0:01:43]}  Qc5 {[%clk 0:02:07]} 19. Bd5 {[%clk 0:01:32]}  Kh7 {[%clk 0:02:05]} 20. h5 {[%clk 0:01:25]}  g5 {[%clk 0:02:02]} 21. Ne2 {[%clk 0:01:17]}  Nc6 {[%clk 0:01:56]} 22. Bxf7 {[%clk 0:01:00]}  Bg4 {[%clk 0:01:51]} 23. b4 {[%clk 0:00:40]}  Qe5 {[%clk 0:01:49]} 24. Bd5 {[%clk 0:00:32]}  Bxh5 {[%clk 0:01:42]} 25. Nxc6 {[%clk 0:00:27]}  bxc6 {[%clk 0:01:41]} 26. Bxc6 {[%clk 0:00:28]}  Rac8 {[%clk 0:01:40]} 27. b5 {[%clk 0:00:28]}  Bxe2 {[%clk 0:01:30]} 28. Qxe2 {[%clk 0:00:29]}  Qxc3 {[%clk 0:01:31]} 29. Rad1 {[%clk 0:00:24]}  Qg3 {[%clk 0:01:24]} 30. Rf3 {[%clk 0:00:23]}  Qh4 {[%clk 0:01:13]} 31. Qf2 {[%clk 0:00:09]}  Qg4 {[%clk 0:00:55]} 32. Rxd6 {[%clk 0:00:09]}  Rcd8 {[%clk 0:00:48]} 33. Rxd8 {[%clk 0:00:05]}  Rxd8 {[%clk 0:00:49]} 34. Kh2 {[%clk 0:00:03]}  Qh5+ {[%clk 0:00:47]} 35. Rh3 {[%clk 0:00:03]}  Be5+ {[%clk 0:00:44]} 36. g3 {[%clk 0:00:03]}  Bxg3+ {[%clk 0:00:03]} 37. Kxg3 {[%clk 0:00:01]}  Rd3+ {[%clk 0:00:03]} 0-1


[Site "https://www.chess.com"]

[Event "Titled Tuesday Blitz June 07 Late 2022"]
[White "Wieczorek, Oskar"]
[Black "Uskov, Artem"]
[WhiteFideId "1133950"]
[BlackFideId "34254854"]
[WhiteElo "2330"]
[BlackElo "2335"]
[Result "1-0"]
[Round "11"]
[TimeControl "180+1"]
[Date "2022.06.07"]
[WhiteClock "0:00:35"]
[BlackClock "0:00:02"]

1. e4 {[%clk 0:03:00]}  c5 {[%clk 0:02:59]} 2. Nf3 {[%clk 0:03:00]}  d6 {[%clk 0:02:48]} 3. d4 {[%clk 0:03:00]}  cxd4 {[%clk 0:02:49]} 4. Nxd4 {[%clk 0:03:01]}  Nf6 {[%clk 0:02:50]} 5. Nc3 {[%clk 0:03:02]}  a6 {[%clk 0:02:50]} 6. h4 {[%clk 0:03:03]}  e5 {[%clk 0:02:47]} 7. Nb3 {[%clk 0:03:03]}  Be7 {[%clk 0:02:46]} 8. Bg5 {[%clk 0:03:03]}  Be6 {[%clk 0:02:45]} 9. Bxf6 {[%clk 0:03:03]}  Bxf6 {[%clk 0:02:44]} 10. g3 {[%clk 0:03:04]}  Nc6 {[%clk 0:02:42]} 11. Qd2 {[%clk 0:03:04]}  Bxb3 {[%clk 0:02:30]} 12. axb3 {[%clk 0:02:53]}  Nd4 {[%clk 0:02:31]} 13. Be2 {[%clk 0:02:48]}  Rc8 {[%clk 0:02:26]} 14. Bd1 {[%clk 0:02:48]}  g5 {[%clk 0:02:24]} 15. h5 {[%clk 0:02:44]}  h6 {[%clk 0:02:16]} 16. Qd3 {[%clk 0:02:32]}  Bg7 {[%clk 0:02:12]} 17. Nd5 {[%clk 0:02:31]}  O-O {[%clk 0:02:01]} 18. c3 {[%clk 0:02:31]}  Ne6 {[%clk 0:02:00]} 19. Bg4 {[%clk 0:02:30]}  Nc5 {[%clk 0:02:01]} 20. Qc2 {[%clk 0:02:29]}  Ne6 {[%clk 0:01:59]} 21. O-O {[%clk 0:02:18]}  Rc5 {[%clk 0:01:56]} 22. b4 {[%clk 0:02:11]}  Rc6 {[%clk 0:01:55]} 23. Qd3 {[%clk 0:02:06]}  Nc7 {[%clk 0:01:43]} 24. Ne3 {[%clk 0:01:47]}  Ne8 {[%clk 0:01:31]} 25. Bd1 {[%clk 0:01:45]}  Nc7 {[%clk 0:01:24]} 26. Bb3 {[%clk 0:01:45]}  Kh8 {[%clk 0:00:49]} 27. Rad1 {[%clk 0:01:44]}  Ne8 {[%clk 0:00:46]} 28. Nf5 {[%clk 0:01:37]}  Nf6 {[%clk 0:00:40]} 29. Nxd6 {[%clk 0:01:28]}  Qc7 {[%clk 0:00:33]} 30. Nf5 {[%clk 0:01:16]}  Nxh5 {[%clk 0:00:31]} 31. Bd5 {[%clk 0:01:08]}  Rb6 {[%clk 0:00:25]} 32. Kg2 {[%clk 0:01:06]}  Nf6 {[%clk 0:00:24]} 33. Rh1 {[%clk 0:01:06]}  Ng8 {[%clk 0:00:21]} 34. Qe3 {[%clk 0:01:03]}  Rg6 {[%clk 0:00:19]} 35. Rh5 {[%clk 0:01:01]}  Nf6 {[%clk 0:00:12]} 36. Rhh1 {[%clk 0:01:01]}  Ng8 {[%clk 0:00:09]} 37. Bb3 {[%clk 0:00:52]}  Ne7 {[%clk 0:00:05]} 38. Nxe7 {[%clk 0:00:42]}  Qxe7 {[%clk 0:00:05]} 39. Qf3 {[%clk 0:00:43]}  Rf6 {[%clk 0:00:05]} 40. Qg4 {[%clk 0:00:42]}  Rd8 {[%clk 0:00:04]} 41. Rxd8+ {[%clk 0:00:41]}  Qxd8 {[%clk 0:00:05]} 42. Rd1 {[%clk 0:00:42]}  Qe7 {[%clk 0:00:04]} 43. Rd7 {[%clk 0:00:42]}  Qe8 {[%clk 0:00:03]} 44. Qd1 {[%clk 0:00:41]}  Kh7 {[%clk 0:00:03]} 45. Qd5 {[%clk 0:00:40]}  Qf8 {[%clk 0:00:02]} 46. Qxb7 {[%clk 0:00:35]} 1-0


[Site "https://www.chess.com"]

[Event "Titled Tuesday Blitz June 07 Late 2022"]
[White "Yuan, Qingyu"]
[Black "Souleidis, Georgios"]
[WhiteFideId "8609772"]
[BlackFideId "4206827"]
[WhiteElo "2359"]
[BlackElo "2401"]
[Result "1-0"]
[Round "11"]
[TimeControl "180+1"]
[Date "2022.06.07"]
[WhiteClock "0:00:31"]
[BlackClock "0:00:03"]

1. e4 {[%clk 0:03:00]}  e5 {[%clk 0:02:57]} 2. Nf3 {[%clk 0:03:00]}  d6 {[%clk 0:02:56]} 3. d4 {[%clk 0:02:59]}  Bg4 {[%clk 0:02:56]} 4. dxe5 {[%clk 0:02:59]}  Nd7 {[%clk 0:02:56]} 5. exd6 {[%clk 0:02:57]}  Bxd6 {[%clk 0:02:57]} 6. Be2 {[%clk 0:02:58]}  Qe7 {[%clk 0:02:57]} 7. Nd4 {[%clk 0:02:34]}  Be6 {[%clk 0:02:48]} 8. Nb5 {[%clk 0:02:25]}  Bb4+ {[%clk 0:02:30]} 9. Bd2 {[%clk 0:02:17]}  Bxd2+ {[%clk 0:02:23]} 10. Qxd2 {[%clk 0:02:16]}  Nb6 {[%clk 0:02:10]} 11. N1c3 {[%clk 0:02:07]}  a6 {[%clk 0:02:01]} 12. Nd4 {[%clk 0:02:03]}  O-O-O {[%clk 0:01:55]} 13. Qe3 {[%clk 0:02:01]}  Nf6 {[%clk 0:01:36]} 14. O-O-O {[%clk 0:01:57]}  Kb8 {[%clk 0:01:26]} 15. a3 {[%clk 0:01:52]}  Rhe8 {[%clk 0:01:13]} 16. Rhe1 {[%clk 0:01:52]}  g6 {[%clk 0:00:57]} 17. f3 {[%clk 0:01:49]}  Bc4 {[%clk 0:00:55]} 18. Bxc4 {[%clk 0:01:32]}  Nxc4 {[%clk 0:00:55]} 19. Qd3 {[%clk 0:01:14]}  Nxa3 {[%clk 0:00:26]} 20. Qxa6 {[%clk 0:00:51]}  bxa6 {[%clk 0:00:19]} 21. Nc6+ {[%clk 0:00:51]}  Kb7 {[%clk 0:00:20]} 22. Nxe7 {[%clk 0:00:51]}  Rxd1+ {[%clk 0:00:14]} 23. Rxd1 {[%clk 0:00:47]}  Nc4 {[%clk 0:00:15]} 24. Ned5 {[%clk 0:00:45]}  Nxd5 {[%clk 0:00:15]} 25. Nxd5 {[%clk 0:00:43]}  h5 {[%clk 0:00:09]} 26. b3 {[%clk 0:00:43]}  Ne5 {[%clk 0:00:07]} 27. Kb2 {[%clk 0:00:43]}  c6 {[%clk 0:00:05]} 28. Nc3 {[%clk 0:00:39]}  Kc7 {[%clk 0:00:03]} 29. Na4 {[%clk 0:00:36]}  Rb8 {[%clk 0:00:02]} 30. Nc5 {[%clk 0:00:34]}  Ra8 {[%clk 0:00:02]} 31. f4 {[%clk 0:00:33]}  Ng4 {[%clk 0:00:03]} 32. Rd7+ {[%clk 0:00:31]}  Kb6 {[%clk 0:00:03]} 33. b4 {[%clk 0:00:31]} 1-0


[Site "https://www.chess.com"]

[Event "Titled Tuesday Blitz June 07 Late 2022"]
[White "Zhigalko, Sergei"]
[Black "Silva, Miguel Antonio Neto"]
[WhiteFideId "13502956"]
[BlackFideId "1911929"]
[WhiteElo "2662"]
[BlackElo "2204"]
[Result "1-0"]
[Round "11"]
[TimeControl "180+1"]
[Date "2022.06.07"]
[WhiteClock "0:00:04"]
[BlackClock "0:00:16"]

1. e4 {[%clk 0:03:00]}  c5 {[%clk 0:02:59]} 2. Nf3 {[%clk 0:03:00]}  d6 {[%clk 0:02:57]} 3. d4 {[%clk 0:03:01]}  cxd4 {[%clk 0:02:57]} 4. Qxd4 {[%clk 0:03:02]}  Nc6 {[%clk 0:02:56]} 5. Bb5 {[%clk 0:03:00]}  Bd7 {[%clk 0:02:57]} 6. Bxc6 {[%clk 0:03:01]}  Bxc6 {[%clk 0:02:57]} 7. Nc3 {[%clk 0:03:01]}  Nf6 {[%clk 0:02:57]} 8. Bg5 {[%clk 0:03:01]}  e6 {[%clk 0:02:56]} 9. O-O-O {[%clk 0:03:00]}  h6 {[%clk 0:02:56]} 10. Bh4 {[%clk 0:03:00]}  Be7 {[%clk 0:02:45]} 11. Rhe1 {[%clk 0:02:59]}  e5 {[%clk 0:02:40]} 12. Qd3 {[%clk 0:02:57]}  g5 {[%clk 0:02:40]} 13. Bg3 {[%clk 0:02:56]}  Qa5 {[%clk 0:02:37]} 14. Nd2 {[%clk 0:02:48]}  b5 {[%clk 0:02:31]} 15. Kb1 {[%clk 0:02:47]}  Rc8 {[%clk 0:02:19]} 16. Nd5 {[%clk 0:02:25]}  Nxd5 {[%clk 0:02:09]} 17. exd5 {[%clk 0:02:26]}  Bd7 {[%clk 0:02:06]} 18. Ne4 {[%clk 0:02:00]}  f5 {[%clk 0:01:23]} 19. Nxd6+ {[%clk 0:01:54]}  Bxd6 {[%clk 0:01:22]} 20. Bxe5 {[%clk 0:01:55]}  Bxe5 {[%clk 0:01:23]} 21. Rxe5+ {[%clk 0:01:55]}  Kd8 {[%clk 0:01:19]} 22. d6 {[%clk 0:01:53]}  Qb6 {[%clk 0:01:07]} 23. Rxf5 {[%clk 0:01:22]}  Re8 {[%clk 0:01:03]} 24. Rf7 {[%clk 0:01:13]}  Rc5 {[%clk 0:00:59]} 25. Qh7 {[%clk 0:00:20]}  Qc6 {[%clk 0:00:58]} 26. Re7 {[%clk 0:00:21]}  Re5 {[%clk 0:00:36]} 27. Rxe8+ {[%clk 0:00:11]}  Rxe8 {[%clk 0:00:36]} 28. Qxh6 {[%clk 0:00:12]}  Qxg2 {[%clk 0:00:33]} 29. Qf6+ {[%clk 0:00:06]}  Kc8 {[%clk 0:00:33]} 30. b3 {[%clk 0:00:06]}  Qxh2 {[%clk 0:00:27]} 31. Rd3 {[%clk 0:00:05]}  Qe5 {[%clk 0:00:22]} 32. Qf7 {[%clk 0:00:01]}  Qe1+ {[%clk 0:00:20]} 33. Kb2 {[%clk 0:00:01]}  Qe5+ {[%clk 0:00:21]} 34. Kb1 {[%clk 0:00:02]}  Kd8 {[%clk 0:00:19]} 35. Qf3 {[%clk 0:00:01]}  Qe1+ {[%clk 0:00:18]} 36. Rd1 {[%clk 0:00:02]}  Qe5 {[%clk 0:00:19]} 37. Qa8+ {[%clk 0:00:02]}  Bc8 {[%clk 0:00:18]} 38. d7 {[%clk 0:00:03]}  Ke7 {[%clk 0:00:16]} 39. dxc8=Q {[%clk 0:00:03]}  Rxc8 {[%clk 0:00:16]} 40. Qxc8 {[%clk 0:00:04]}  Kf6 {[%clk 0:00:16]} 41. Qd8+ {[%clk 0:00:04]} 1-0


[Site "https://www.chess.com"]